fUSD/lending_fUSD_20251019
["ID","MTS","AMOUNT","RATE_DAILY","PERIOD"]
[391809922,1760863840687,-6683.27914859,0.00021757,2]
[391809923,1760863840698,-431.96,0.00021757,2]
[391809924,1760863840710,-1472.8051814,0.00021757,2]
[391809925,1760863840720,-1049.0,0.00021757,2]
[391809942,1760863843388,-357.35700004,0.00021757,2]
[391809943,1760863843441,-10006.65866997,0.00021757,2]
[391809944,1760863843451,-9999.99,0.00021757,2]
[391809945,1760863843460,-162.51,0.00021757,2]
[391809946,1760863843470,-500.0,0.00021867,2]
[391809947,1760863843479,-500.0,0.00021867,2]
[391809948,1760863843489,-20000.0,0.00021914,2]
[391809949,1760863843498,-5000.0,0.00021918,2]
[391809950,1760863843507,-1111.69768822,0.00022142,2]
[391809951,1760863843517,-20000.0,0.00022414,2]
[391809952,1760863843526,-500.0,0.00022415,2]
[391809953,1760863843535,-374.79691305,0.00022675,2]
[391809954,1760863843544,-500.46255512,0.00022675,2]
[391809955,1760863843553,-501.19732905,0.00022675,2]
[391809956,1760863843562,-500.0,0.00022675,2]
[391809957,1760863843571,-174.77983413,0.00022675,2]
[391809958,1760863843580,-500.0,0.00022675,2]
[391809959,1760863843590,-501.36065041,0.00022675,2]
[391809960,1760863843598,-339.31532798,0.00022675,2]
[391809961,1760863843607,-500.0,0.00022675,2]
[391809962,1760863843617,-213.95570322,0.00022675,2]
[391809963,1760863843627,-500.0,0.00022675,2]
[391809964,1760863843636,-500.0,0.00022675,2]
[391809965,1760863843646,-500.4575524,0.00022675,2]
[391809966,1760863843655,-167.85481151,0.00022815,2]
[391809967,1760863843664,-162.51,0.00022891,2]
[391809968,1760863843674,-20000.0,0.00022914,2]
[391809969,1760863843683,-787.2192929,0.00022915,2]
[391809970,1760863843693,-527.06318,0.00022923,2]
[391809971,1760863843702,-856.1994359,0.00023223,2]
[391809972,1760863843711,-500.0,0.00023223,2]
[391809973,1760863843721,-500.0,0.00023223,2]
[391809974,1760863843729,-422.76465953,0.00023223,2]
[391809975,1760863843738,-1111.69768822,0.00023434,2]
[391809976,1760863843748,-4742.09797229,0.00023535,2]
[391809977,1760863843757,-153.0,0.00023563,2]
[391809978,1760863843766,-153.0,0.00023563,2]
[391809979,1760863843775,-153.0,0.00023563,2]
[391809980,1760863843784,-153.0,0.00023563,2]
[391809981,1760863843793,-153.0,0.00023596,2]
[391809982,1760863843802,-153.0,0.00023596,2]
[391809983,1760863843811,-20000.0,0.00023914,2]
[391809984,1760863843820,-162.51,0.00024026,2]
[391809985,1760863843831,-167.85481145,0.00024253,2]
[391809986,1760863843840,-664.17212895,0.00024277,2]
[391809988,1760863843849,-598.27437593,0.00024277,2]
[391809989,1760863843858,-327.31221957,0.00024277,2]
[391809991,1760863843867,-277.35679052,0.00024277,2]
[391809993,1760863843876,-250.0,0.00024277,2]
[391809994,1760863843886,-390.31295391,0.00024277,2]
[391809995,1760863843895,-169.58732515,0.00024277,2]
[391809996,1760863843903,-1000.0,0.000247,2]
[391809997,1760863843913,-1111.69768822,0.00024725,2]
[391809998,1760863843921,-150.0,0.00024768,2]
[391809999,1760863843931,-150.0,0.00024823,2]
[391810000,1760863843939,-160.45722424,0.00024832,2]
[391810001,1760863843947,-150.0,0.00024878,2]
[391810002,1760863843957,-41252.0108468,0.00024885,3]
[391810003,1760863843967,-162.81,0.00024885,2]
[391810004,1760863843976,-137600.13261973,0.00024895,2]
[391810005,1760863844082,-956.09256809,0.00024895,2]
[391810006,1760863844094,-691.038083,0.00024895,2]
[391810007,1760863844105,-12247.23195901,0.00024895,2]
[391810008,1760863844135,-2709.11852819,0.00024895,2]
[391810009,1760863844144,-26120.75,0.00024914,2]
[391810010,1760863844153,-527.06319,0.00024923,2]
[391810011,1760863844163,-500.0,0.00024932,2]
[391810012,1760863844172,-500.0,0.00024932,2]
[391810013,1760863844181,-500.0,0.00024932,2]
[391810014,1760863844191,-150.0,0.00024932,2]
[391810015,1760863844201,-264.91827268,0.00024987,2]
[391810016,1760863844210,-167.85481145,0.00025691,2]
[391810017,1760863844220,-2826.0,0.0002576,2]
[391810018,1760863844229,-1413.86430085,0.00025761,2]
[391810019,1760863844239,-1111.69768822,0.00026016,2]
[391810020,1760863844249,-500.79138186,0.00026463,2]
[391810021,1760863844258,-304.25,0.00026676,2]
[391810022,1760863844268,-527.06319,0.00026923,2]
[391810023,1760863844278,-250.0,0.00027014,7]
[391810024,1760863844287,-1118.393,0.00027045,15]
[391810025,1760863844297,-167.85481145,0.00027129,2]
[391810026,1760863844306,-1111.69768822,0.00027308,2]
[391810027,1760863844316,-1694.93532086,0.000274,2]
[391810028,1760863844327,-151.0,0.00027533,7]
[391810029,1760863844336,-10313.0027117,0.00027537,3]
[391810030,1760863844346,-2459.0,0.00027875,2]
[391810031,1760863844355,-200.0,0.00027973,5]
[391810032,1760863844365,-500.0,0.00027973,5]
[391810033,1760863844375,-434.40223158,0.00027973,5]
[391810034,1760863844384,-48987.67487293,0.0002799,3]
[391810047,1760863856458,-23203.34410897,0.0002799,3]
[391810048,1760863856468,-30000.0,0.00028,2]
[391810049,1760863856477,-30000.0,0.00028,2]
[391810050,1760863856486,-30000.0,0.00028,2]
[391810051,1760863856495,-30000.0,0.00028,2]
[391810052,1760863856504,-31065.69962336,0.00028,2]
[391810053,1760863856513,-151.0,0.000285,2]
[391810054,1760863856523,-167.85481145,0.00028568,2]
[391810055,1760863856532,-1111.69768822,0.00028599,2]
[391810056,1760863856541,-400.0,0.00028658,5]
[391810057,1760863856550,-689.54,0.000287,2]
[391810058,1760863856559,-429.27126821,0.0002876,2]
[391810059,1760863856569,-400.0,0.00029342,5]
[391810060,1760863856578,-151.0,0.000295,2]
[391810061,1760863856588,-157.5,0.00029598,2]
[391810062,1760863856597,-200.0,0.000298,10]
[391810063,1760863856606,-251.07272752,0.00029873,5]
[391810064,1760863856615,-61878.0162702,0.0002989,3]
[391810065,1760863856624,-42865.4634419,0.0002989,3]
[391810066,1760863856633,-1111.69768822,0.0002989,2]
[391810067,1760863856643,-97782.84381058,0.000299,2]
[391810068,1760863856652,-114801.841,0.000299,2]
[391810069,1760863856660,-161.8418776,0.000299,2]
[391810070,1760863856670,-500.0,0.000299,10]
[391810071,1760863856679,-20626.0054234,0.00029963,3]
[391810072,1760863856689,-21432.731721,0.00029963,3]
[391810073,1760863856698,-205.14193057,0.0002997,2]
[391810074,1760863856707,-151.29,0.0002997,2]
[391810075,1760863856716,-39988.0,0.00029973,2]
[391810076,1760863856725,-51565.0135585,0.0002998,3]
[391810077,1760863856734,-48223.6463722,0.0002998,3]
[391810078,1760863856743,-10716.3658605,0.0002998,3]
[391810079,1760863856752,-10313.0027117,0.0002999,3]
[391810080,1760863856762,-107163.658605,0.0002999,3]
[391810081,1760863856771,-151.0,0.0002999,30]
[391810082,1760863856780,-151.0,0.0002999,30]
[391810083,1760863856790,-151.0,0.0002999,30]
[391810084,1760863856801,-151.0,0.0002999,30]
[391810085,1760863856810,-151.0,0.0002999,30]
[391810086,1760863856819,-151.0,0.0002999,30]
[391810087,1760863856829,-151.0,0.0002999,30]
[391810088,1760863856840,-151.0,0.0002999,30]
[391810089,1760863856850,-151.0,0.0002999,30]
[391810090,1760863856859,-151.0,0.0002999,30]
[391810091,1760863856868,-151.0,0.0002999,30]
[391810092,1760863856980,-151.0,0.0002999,30]
[391810093,1760863857000,-151.0,0.0002999,30]
[391810094,1760863857010,-151.0,0.0002999,30]
[391810095,1760863857019,-151.0,0.0002999,30]
[391810096,1760863857028,-151.0,0.0002999,30]
[391810097,1760863857038,-151.0,0.0002999,30]
[391810098,1760863857047,-151.0,0.0002999,30]
[391810099,1760863857056,-259.994209,0.0002999,30]
[391810100,1760863857066,-151.0,0.0002999,30]
[391810101,1760863857075,-151.0,0.0002999,30]
[391810102,1760863857085,-259.994209,0.0002999,30]
[391810103,1760863857094,-151.0,0.0002999,30]
[391810104,1760863857103,-259.994209,0.0002999,30]
[391810105,1760863857112,-203.908452,0.0002999,30]
[391810106,1760863857122,-152.869778,0.0002999,30]
[391810107,1760863857131,-259.994209,0.0002999,30]
[391810108,1760863857141,-151.0,0.0002999,30]
[391810109,1760863857151,-151.0,0.0002999,30]
[391810110,1760863857161,-264.767769,0.0002999,30]
[391810111,1760863857170,-151.0,0.0002999,30]
[391810112,1760863857180,-491292.46664,0.0003,10]
[391810113,1760863857189,-151.0,0.0003,2]
[391810114,1760863857199,-293.37926368,0.0003,7]
[391810115,1760863857208,-278.670365,0.0003,30]
[391810116,1760863857218,-155.807944,0.0003,30]
[391810117,1760863857227,-156.879169,0.0003,30]
[391810118,1760863857236,-151.0,0.0003,30]
[391810119,1760863857245,-151.0,0.0003,30]
[391810120,1760863857255,-151.0,0.0003,30]
[391810121,1760863857268,-151.0,0.0003,30]
[391810122,1760863857278,-151.0,0.0003,30]
[391810123,1760863857287,-151.0,0.0003,30]
[391810124,1760863857298,-151.0,0.0003,30]
[391810125,1760863857307,-246.845721,0.0003,30]
[391810126,1760863857317,-151.0,0.0003,30]
[391810127,1760863857326,-151.0,0.0003,30]
[391810128,1760863857339,-151.0,0.0003,30]
[391810129,1760863857348,-151.0,0.0003,30]
[391810130,1760863857357,-154.821242,0.0003,30]
[391810131,1760863857366,-151.0,0.0003,30]
[391810132,1760863857376,-151.0,0.0003,30]
[391810133,1760863857385,-151.0,0.0003,30]
[391810134,1760863857394,-151.0,0.0003,30]
[391810135,1760863857403,-151.0,0.0003,30]
[391810136,1760863857412,-151.0,0.0003,30]
[391810137,1760863857421,-174.024582,0.0003,30]
[391810138,1760863857429,-151.0,0.0003,30]
[391810139,1760863857438,-174.024582,0.0003,30]
[391810140,1760863857447,-174.024582,0.0003,30]
[391810141,1760863857456,-174.024582,0.0003,30]
[391810142,1760863857465,-293.560511,0.0003,30]
[391810143,1760863857474,-293.560511,0.0003,30]
[391810144,1760863857484,-151.0,0.0003,30]
[391810145,1760863857493,-293.560511,0.0003,30]
[391810146,1760863857502,-151.0,0.0003,30]
[391810147,1760863857511,-151.0,0.0003,30]
[391810148,1760863857521,-293.560511,0.0003,30]
[391810149,1760863857530,-151.0,0.0003,30]
[391810150,1760863857539,-151.0,0.0003,30]
[391810151,1760863857548,-151.0,0.0003,30]
[391810152,1760863857558,-151.0,0.0003,30]
[391810153,1760863857567,-227.742462,0.0003,30]
[391810154,1760863857576,-151.0,0.0003,30]
[391810155,1760863857586,-151.0,0.0003,30]
[391810156,1760863857597,-151.0,0.0003,30]
[391810157,1760863857606,-278.425259,0.0003,30]
[391810158,1760863857615,-151.0,0.0003,30]
[391810159,1760863857624,-151.0,0.0003,30]
[391810160,1760863857634,-151.0,0.0003,30]
[391810161,1760863857643,-151.0,0.0003,30]
[391810162,1760863857653,-172.746054,0.0003,30]
[391810163,1760863857662,-151.0,0.0003,30]
[391810164,1760863857671,-151.0,0.0003,30]
[391810165,1760863857681,-151.0,0.0003,30]
[391810166,1760863857690,-151.0,0.0003,30]
[391810167,1760863857699,-151.0,0.0003,30]
[391810168,1760863857709,-151.0,0.0003,30]
[391810169,1760863857718,-151.0,0.0003,30]
[391810170,1760863857727,-151.0,0.0003,30]
[391810171,1760863857737,-151.0,0.0003,30]
[391810172,1760863857746,-151.0,0.0003,30]
[391810173,1760863857755,-151.0,0.0003,30]
[391810174,1760863857765,-193.72155211,0.0003,30]
[391810175,1760863857774,-151.0,0.0003,30]
[391810176,1760863857783,-241.134348,0.0003,30]
[391810177,1760863857792,-151.0,0.0003,30]
[391810178,1760863857801,-259.994209,0.0003,30]
[391810179,1760863857810,-151.0,0.0003,30]
[391810180,1760863857820,-259.994209,0.0003,30]
[391810181,1760863857829,-151.0,0.0003,30]
[391810182,1760863857841,-259.994209,0.0003,30]
[391810183,1760863857850,-259.994209,0.0003,30]
[391810184,1760863857859,-151.0,0.0003,30]
[391810185,1760863857869,-151.0,0.0003,30]
[391810186,1760863857878,-167.85481145,0.00030006,2]
[391810187,1760863857888,-291.11458394,0.00030136,8]
[391810188,1760863857896,-301.96,0.00030136,7]
[391810189,1760863857904,-505.36721021,0.00030136,8]
[391810190,1760863857913,-507.55842148,0.00030136,8]
[391810191,1760863857922,-506.11478795,0.00030136,8]
[391810192,1760863857931,-500.0,0.00030136,8]
[391810193,1760863857940,-500.0,0.00030136,8]
[391810194,1760863857950,-500.0,0.00030136,8]
[391810195,1760863857959,-500.0,0.00030136,8]
[391810196,1760863857968,-500.0,0.00030136,8]
[391810197,1760863857977,-500.0,0.00030136,8]
[391810198,1760863857986,-500.0,0.00030136,2]
[391810199,1760863857996,-500.0,0.00030136,2]
[391810200,1760863858005,-500.0,0.00030136,2]
[391810201,1760863858014,-500.0,0.00030136,2]
[391810202,1760863858023,-157.15486003,0.00030136,8]
[391810203,1760863858033,-500.0,0.00030136,2]
[391810204,1760863858043,-500.0,0.00030136,2]
[391810205,1760863858052,-500.0,0.00030136,2]
[391810206,1760863858061,-500.0,0.00030136,2]
[391810207,1760863858071,-500.0,0.00030136,2]
[391810208,1760863858080,-500.0,0.00030136,8]
[391810209,1760863858092,-234.32,0.00030136,8]
[391810210,1760863858101,-515.7504412,0.00030136,8]
[391810211,1760863858110,-614.0433406,0.00030136,8]
[391810212,1760863858119,-394.82425716,0.00030136,8]
[391810213,1760863858129,-511.66817873,0.00030136,8]
[391810214,1760863858139,-338.27612421,0.00030136,5]
[391810215,1760863858148,-155.12478301,0.00030136,8]
[391810216,1760863858158,-520.62196796,0.00030136,8]
[391810217,1760863858168,-500.0,0.00030136,8]
[391810218,1760863858177,-500.0,0.00030136,8]
[391810219,1760863858186,-500.0,0.00030136,8]
[391810220,1760863858196,-500.0,0.00030136,8]
[391810221,1760863858205,-500.0,0.00030136,8]
[391810222,1760863858215,-500.0,0.00030136,8]
[391810223,1760863858224,-645.26832552,0.00030136,8]
[391810224,1760863858233,-500.0,0.00030136,8]
[391810225,1760863858243,-549.2,0.00030136,8]
[391810226,1760863858251,-301.50448544,0.00030136,8]
[391810227,1760863858260,-1385.94,0.00030136,8]
[391810228,1760863858270,-1385.94,0.00030136,8]
[391810229,1760863858279,-1385.94,0.00030136,8]
[391810230,1760863858293,-1385.94,0.00030136,8]
[391810231,1760863858308,-1385.94,0.00030136,8]
[391810232,1760863858321,-500.41527994,0.00030136,8]
[391810233,1760863858334,-500.0,0.00030136,8]
[391810234,1760863858346,-525.34115263,0.00030136,8]
[391810235,1760863858360,-500.40241479,0.00030136,8]
[391810236,1760863858373,-500.0,0.00030136,8]
[391810237,1760863858386,-158.37889382,0.00030136,8]
[391810238,1760863858399,-300.0,0.00030137,60]
[391810239,1760863858411,-300.0,0.00030137,60]
[391810240,1760863858424,-400.0,0.00030137,60]
[391810241,1760863858436,-695.55,0.00030215,2]
[391810242,1760863858447,-695.55,0.00030215,2]
[391810243,1760863858458,-695.55,0.00030215,2]
[391810244,1760863858468,-695.55,0.00030215,2]
[391810245,1760863858481,-948.73,0.00030215,2]
[391810246,1760863858493,-695.55,0.00030215,2]
[391810247,1760863858506,-474.98,0.00030215,2]
[391810248,1760863858518,-250.76,0.00030215,2]
[391810249,1760863858530,-474.98,0.00030215,2]
[391810250,1760863858542,-474.98,0.00030215,2]
[391810251,1760863858556,-1390.94,0.00030215,2]
[391810252,1760863858568,-474.98,0.00030215,2]
[391810253,1760863858580,-474.98,0.00030215,2]
[391810254,1760863858592,-474.98,0.00030215,2]
[391810255,1760863858605,-695.55,0.00030215,2]
[391810256,1760863858618,-474.98,0.00030215,2]
[391810257,1760863858630,-695.55,0.00030215,2]
[391810258,1760863858642,-474.98,0.00030215,2]
[391810259,1760863858653,-301.96,0.0003041,7]
[391810260,1760863858666,-161.84187758,0.00030496,2]
[391810261,1760863858678,-1500.0,0.00030656,120]
[391810262,1760863858691,-666.0,0.00030671,3]
[391810263,1760863858704,-301.97655837,0.00030684,7]
[391810264,1760863858715,-792.47,0.0003069,2]
[391810265,1760863858727,-200.0,0.0003082,2]
[391810266,1760863858738,-500.0,0.000309,30]
[391810267,1760863858748,-689.54,0.000309,2]
[391810268,1760863858759,-500.0,0.0003095,10]
[391810269,1760863858770,-1000.0,0.00030979,2]
[391810270,1760863858783,-424.24,0.00031011,2]
[391810271,1760863858797,-500.0,0.0003106,20]
[391810272,1760863858807,-500.0,0.0003108,10]
[391810273,1760863858817,-161.84187758,0.00031093,2]
[391810274,1760863858827,-695.55,0.00031174,2]
[391810275,1760863858838,-474.98,0.00031174,2]
[391810276,1760863858850,-695.55,0.00031174,2]
[391810277,1760863858862,-474.98,0.00031174,2]
[391810278,1760863858877,-470.14,0.00031174,2]
[391810279,1760863858889,-695.55,0.00031174,2]
[391810280,1760863858902,-695.55,0.00031174,2]
[391810281,1760863858914,-474.98,0.00031174,2]
[391810282,1760863858926,-693.31,0.00031174,2]
[391810283,1760863858938,-474.98,0.00031174,2]
[391810284,1760863858950,-474.98,0.00031174,2]
[391810285,1760863858962,-695.55,0.00031174,2]
[391810286,1760863858974,-695.55,0.00031174,2]
[391810287,1760863858986,-474.98,0.00031174,2]
[391810288,1760863858998,-474.98,0.00031174,2]
[391810289,1760863859009,-695.55,0.00031174,2]
[391810290,1760863859020,-1389.7,0.00031174,2]
[391810291,1760863859033,-474.98,0.00031174,2]
[391810292,1760863859044,-474.98,0.00031174,2]
[391810293,1760863859056,-648.01,0.00031174,2]
[391810294,1760863859068,-474.98,0.00031174,2]
[391810295,1760863859080,-474.98,0.00031174,2]
[391810296,1760863859091,-944.65,0.00031174,2]
[391810297,1760863859102,-949.16,0.00031174,2]
[391810298,1760863859114,-474.79,0.00031174,2]
[391810299,1760863859125,-1111.69768822,0.00031182,2]
[391810300,1760863859136,-167.85481145,0.00031444,2]
[391810301,1760863859147,-576.22243923,0.00031491,2]
[391810302,1760863859159,-153.85607489,0.00031507,30]
[391810303,1760863859170,-150.0,0.00031519,2]
[391810304,1760863859181,-500.0,0.00031565,7]
[391810305,1760863859193,-500.0,0.00031565,7]
[391810306,1760863859204,-352.08,0.00031585,2]
[391810307,1760863859215,-1092.92,0.00031585,2]
[391810308,1760863859226,-150.0,0.00031585,2]
[391810309,1760863859237,-150.0,0.00031585,2]
[391810310,1760863859248,-156.15,0.00031585,2]
[391810311,1760863859263,-833.8,0.00031585,2]
[391810312,1760863859274,-150.0,0.00031585,2]
[391810313,1760863859285,-150.0,0.00031585,2]
[391810314,1760863859296,-185.68,0.00031585,2]
[391810315,1760863859307,-413.82,0.00031585,2]
[391810316,1760863859319,-150.0,0.00031585,2]
[391810317,1760863859330,-354.2,0.00031585,2]
[391810318,1760863859344,-546.93,0.00031585,2]
[391810319,1760863859354,-168.31,0.00031585,2]
[391810320,1760863859365,-150.0,0.00031585,2]
[391810321,1760863859377,-150.0,0.00031585,2]
[391810322,1760863859387,-352.64,0.00031585,2]
[391810323,1760863859399,-413.82,0.00031585,2]
[391810324,1760863859410,-150.0,0.00031585,2]
[391810325,1760863859421,-546.93,0.00031585,2]
[391810326,1760863859432,-150.0,0.00031585,2]
[391810327,1760863859443,-167.69,0.00031585,2]
[391810328,1760863859454,-150.0,0.00031585,2]
[391810329,1760863859465,-412.27,0.00031585,2]
[391810330,1760863859477,-150.0,0.00031585,2]
[391810331,1760863859487,-546.93,0.00031585,2]
[391810332,1760863859498,-336.48,0.00031585,2]
[391810333,1760863859508,-150.0,0.00031585,2]
[391810334,1760863859519,-832.43,0.00031585,2]
[391810335,1760863859530,-150.0,0.00031585,2]
[391810336,1760863859540,-546.93,0.00031585,2]
[391810337,1760863859551,-150.0,0.00031585,2]
[391810338,1760863859563,-545.78,0.00031585,2]
[391810339,1760863859574,-150.0,0.00031585,2]
[391810340,1760863859585,-153.85607489,0.00031616,30]
[391810341,1760863859596,-161.84187758,0.00031689,2]
[391810342,1760863859607,-153.85607489,0.00031753,30]
[391810343,1760863859618,-551.78,0.00031753,2]
[391810344,1760863859630,-700.0,0.000318,11]
[391810345,1760863859642,-500.0,0.00031832,2]
[391810346,1760863859653,-153.85607489,0.00031863,30]
[391810347,1760863859665,-1000.0,0.000319,11]
[391810348,1760863859676,-1619.19345994,0.00031982,4]
[391810349,1760863859687,-153.85607489,0.00032,30]
[391810350,1760863859699,-1704.581,0.00032,120]
[391810351,1760863859710,-1000.0,0.00032,2]
[391810352,1760863859721,-153.85607489,0.00032137,30]
[391810353,1760863859732,-150.0,0.00032199,2]
[391810354,1760863859743,-368.78141721,0.000322,2]
[391810355,1760863859754,-200.0,0.00032205,2]
[391810356,1760863859765,-1000.0,0.00032208,2]
[391810357,1760863859776,-150.0,0.00032209,2]
[391810358,1760863859787,-1425.0,0.00032215,2]
[391810359,1760863859798,-1000.0,0.00032229,2]
[391810360,1760863859809,-153.85607489,0.00032247,30]
[391810361,1760863859820,-1425.0,0.00032248,2]
[391810362,1760863859831,-1425.0,0.00032283,2]
[391810363,1760863859842,-161.84187758,0.00032286,2]
[391810364,1760863859853,-150.0,0.00032286,2]
[391810365,1760863859864,-150.0,0.000323,5]
[391810366,1760863860038,-1425.0,0.00032302,2]
[391810367,1760863860058,-150.0,0.00032307,2]
[391810368,1760863860068,-154.89354758,0.00032323,120]
[391810369,1760863860078,-1425.0,0.00032334,2]
[391810370,1760863860088,-1000.0,0.00032363,2]
[391810371,1760863860099,-500.0,0.00032364,2]
[391810372,1760863860109,-1385.94,0.00032364,8]
[391810373,1760863860118,-150.0,0.00032373,5]
[391810374,1760863860127,-153.85607489,0.00032384,30]
[391810375,1760863860137,-1000.0,0.00032384,2]
[391810376,1760863860146,-1425.0,0.00032389,2]
[391810377,1760863860155,-1000.0,0.00032391,2]
[391810378,1760863860164,-541.43384309,0.00032391,2]
[391810379,1760863860174,-5982.41,0.00032398,2]
[391810380,1760863860184,-5010.91101312,0.00032399,2]
[391810381,1760863860194,-211.49273822,0.00032399,2]
[391810382,1760863860204,-500.0,0.00032399,8]
[391810383,1760863860214,-136475.63333867,0.000324,4]
[391810384,1760863860223,-10000.0,0.000324,30]
[391810385,1760863860233,-300.0,0.000324,10]
[391810386,1760863860243,-300.0,0.000324,15]
[391810387,1760863860253,-689.54,0.000324,2]
[391810388,1760863860263,-1000.0,0.00032437,2]
[391810389,1760863860272,-14277.0,0.00032438,2]
[391810390,1760863860281,-150.0,0.00032455,2]
[391810391,1760863860291,-500.0,0.00032455,2]
[391810392,1760863860300,-151.0,0.00032455,30]
[391810393,1760863860310,-264.968687,0.00032455,30]
[391810394,1760863860319,-151.0,0.00032455,30]
[391810395,1760863860328,-500.0,0.00032455,2]
[391810396,1760863860339,-151.0,0.00032455,30]
[391810397,1760863860350,-151.0,0.00032455,30]
[391810398,1760863860359,-151.0,0.00032455,30]
[391810399,1760863860369,-151.0,0.00032455,30]
[391810400,1760863860378,-151.0,0.00032455,30]
[391810401,1760863860387,-151.0,0.00032455,30]
[391810402,1760863860395,-151.0,0.00032455,30]
[391810403,1760863860405,-151.00000033,0.00032455,30]
[391810404,1760863860415,-151.0,0.00032455,30]
[391810405,1760863860424,-174.024582,0.00032455,30]
[391810406,1760863860434,-151.0,0.00032455,30]
[391810407,1760863860443,-174.024582,0.00032455,30]
[391810408,1760863860452,-174.024582,0.00032455,30]
[391810409,1760863860463,-174.024582,0.00032455,30]
[391810410,1760863860472,-293.560511,0.00032455,30]
[391810411,1760863860481,-293.560511,0.00032455,30]
[391810412,1760863860490,-151.0,0.00032455,30]
[391810413,1760863860499,-293.560511,0.00032455,30]
[391810414,1760863860510,-290.147261,0.00032455,30]
[391810415,1760863860519,-151.0,0.00032455,30]
[391810416,1760863860528,-293.560511,0.00032455,30]
[391810417,1760863860537,-151.0,0.00032455,30]
[391810418,1760863860546,-151.0,0.00032455,30]
[391810419,1760863860555,-151.0,0.00032455,30]
[391810420,1760863860565,-1385.94,0.00032455,8]
[391810421,1760863860574,-151.0,0.00032455,30]
[391810422,1760863860583,-151.0,0.00032455,30]
[391810423,1760863860594,-151.0,0.00032455,30]
[391810424,1760863860603,-151.0,0.00032455,30]
[391810425,1760863860612,-151.0,0.00032455,30]
[391810426,1760863860621,-151.0,0.00032455,30]
[391810427,1760863860631,-151.0,0.00032455,30]
[391810428,1760863860640,-151.0,0.00032455,30]
[391810429,1760863860649,-151.0,0.00032455,30]
[391810430,1760863860658,-151.0,0.00032455,30]
[391810431,1760863860667,-151.0,0.00032455,30]
[391810432,1760863860677,-151.0,0.00032455,30]
[391810433,1760863860687,-151.0,0.00032455,30]
[391810434,1760863860696,-151.0,0.00032455,30]
[391810435,1760863860706,-151.0,0.00032455,30]
[391810436,1760863860715,-151.0,0.00032455,30]
[391810437,1760863860724,-151.0,0.00032455,30]
[391810438,1760863860734,-259.994209,0.00032455,30]
[391810439,1760863860744,-151.0,0.00032455,30]
[391810440,1760863860754,-259.994209,0.00032455,30]
[391810441,1760863860763,-151.0,0.00032455,30]
[391810442,1760863860773,-259.994209,0.00032455,30]
[391810443,1760863860782,-259.994209,0.00032455,30]
[391810444,1760863860791,-179.672344,0.00032455,30]
[391810445,1760863860801,-124461.94188679,0.00032455,2]
[391810446,1760863860810,-150.0,0.00032463,30]
[391810447,1760863860820,-223.22540326,0.00032463,30]
[391810448,1760863860829,-1196.576,0.00032463,120]
[391810449,1760863860839,-1000.0,0.00032463,90]
[391810450,1760863860849,-1000.0,0.00032463,90]
[391810451,1760863860858,-586.808,0.00032463,90]
[391810452,1760863860868,-500.0,0.00032464,2]